[Event "*** SCC Grand Prix: Titled Tuesday Blitz"]
[Site "Chess.com"]
[Date "2020.09.29"]
[Round "3"]
[White "Gahan-MG"]
[Black "daro94"]
[Result "1/2-1/2"]
[WhiteElo "2589"]
[BlackElo "2934"]
[TimeControl "180+1"]
[EndTime "10:29:37 PDT"]
[Termination "Game drawn by repetition"]

1. e4 {[%clk 0:02:58.9]} 1... e6 {[%clk 0:03:00.5]} 2. b3 {[%clk 0:02:58.9]}
2... d5 {[%clk 0:03:01.4]} 3. Bb2 {[%clk 0:02:59.1]} 3... Nf6 {[%clk 0:02:58.7]}
4. e5 {[%clk 0:02:59.2]} 4... Nfd7 {[%clk 0:02:59]} 5. c4 {[%clk 0:03:00.1]}
5... c5 {[%clk 0:02:49.1]} 6. cxd5 {[%clk 0:02:58.3]} 6... exd5 {[%clk 0:02:50]}
7. f4 {[%clk 0:02:57.9]} 7... Nc6 {[%clk 0:02:48]} 8. Nf3 {[%clk 0:02:57.5]}
8... Nb6 {[%clk 0:02:48.1]} 9. d4 {[%clk 0:02:54.7]} 9... cxd4 {[%clk
0:02:39.1]} 10. Nxd4 {[%clk 0:02:55.6]} 10... Bb4+ {[%clk 0:02:39.1]} 11. Nc3
{[%clk 0:02:49.8]} 11... O-O {[%clk 0:02:19.1]} 12. a3 {[%clk 0:02:46]} 12...
Bc5 {[%clk 0:02:17.8]} 13. Nce2 {[%clk 0:02:36.9]} 13... Bg4 {[%clk 0:02:15.2]}
14. Qd2 {[%clk 0:02:35.4]} 14... Rc8 {[%clk 0:02:09.4]} 15. g3 {[%clk
0:02:30.3]} 15... f6 {[%clk 0:01:50.7]} 16. Nxc6 {[%clk 0:02:28.3]} 16... Rxc6
{[%clk 0:01:42.5]} 17. b4 {[%clk 0:02:20.3]} 17... Nc4 {[%clk 0:01:41.5]} 18.
Qc3 {[%clk 0:02:14.3]} 18... Bb6 {[%clk 0:01:36.4]} 19. Nd4 {[%clk 0:02:06.3]}
19... Bxd4 {[%clk 0:01:28]} 20. Qxd4 {[%clk 0:02:07.2]} 20... fxe5 {[%clk
0:01:28.6]} 21. fxe5 {[%clk 0:02:00.7]} 21... Nxe5 {[%clk 0:01:03]} 22. Bg2
{[%clk 0:01:53.7]} 22... Nd3+ {[%clk 0:01:00.5]} 23. Qxd3 {[%clk 0:01:42.4]}
23... Qe7+ {[%clk 0:01:00.2]} 24. Be4 {[%clk 0:01:30.7]} 24... dxe4 {[%clk
0:00:54.7]} 25. Qd5+ {[%clk 0:01:26.3]} 25... Kh8 {[%clk 0:00:43.1]} 26. Rf1
{[%clk 0:01:20.5]} 26... Bf3 {[%clk 0:00:39.7]} 27. Qe5 {[%clk 0:01:10.6]} 27...
Qxe5 {[%clk 0:00:19.1]} 28. Bxe5 {[%clk 0:01:11.5]} 28... Rd8 {[%clk 0:00:13]}
29. Rf2 {[%clk 0:01:08.5]} 29... Kg8 {[%clk 0:00:11.7]} 30. Rd2 {[%clk
0:01:06.1]} 30... Re8 {[%clk 0:00:11.2]} 31. Bd4 {[%clk 0:01:04.6]} 31... h6
{[%clk 0:00:04.7]} 32. Kf2 {[%clk 0:00:59.7]} 32... a6 {[%clk 0:00:04.5]} 33.
Ke3 {[%clk 0:00:57.6]} 33... Kh7 {[%clk 0:00:04.1]} 34. Raa2 {[%clk 0:00:55.2]}
34... Re7 {[%clk 0:00:04.6]} 35. Rac2 {[%clk 0:00:55.1]} 35... Rce6 {[%clk
0:00:04.6]} 36. Rc8 {[%clk 0:00:50.3]} 36... Rf7 {[%clk 0:00:04.8]} 37. Rdc2
{[%clk 0:00:48.8]} 37... Bg4 {[%clk 0:00:04.6]} 38. Rf2 {[%clk 0:00:45.2]} 38...
Rf3+ {[%clk 0:00:04]} 39. Rxf3 {[%clk 0:00:39.4]} 39... exf3+ {[%clk 0:00:04.9]}
40. Kf4 {[%clk 0:00:38]} 40... Bh3 {[%clk 0:00:03.3]} 41. Rc7 {[%clk 0:00:29]}
41... f2 {[%clk 0:00:03.3]} 42. Rxg7+ {[%clk 0:00:21.3]} 42... Kh8 {[%clk
0:00:03.9]} 43. Rc7+ {[%clk 0:00:17.9]} 43... Kg8 {[%clk 0:00:04.2]} 44. Bxf2
{[%clk 0:00:17.7]} 44... Rf6+ {[%clk 0:00:04.3]} 45. Ke3 {[%clk 0:00:18]} 45...
Bg4 {[%clk 0:00:03.5]} 46. Be1 {[%clk 0:00:15.5]} 46... Re6+ {[%clk 0:00:03.2]}
47. Kf2 {[%clk 0:00:14.8]} 47... Re2+ {[%clk 0:00:02.9]} 48. Kf1 {[%clk
0:00:15.3]} 48... Ra2 {[%clk 0:00:02.4]} 49. Bc3 {[%clk 0:00:11.6]} 49... Bh3+
{[%clk 0:00:02.9]} 50. Ke1 {[%clk 0:00:11.5]} 50... b5 {[%clk 0:00:03.3]} 51.
Rg7+ {[%clk 0:00:10.2]} 51... Kf8 {[%clk 0:00:03.8]} 52. Rg6 {[%clk 0:00:10.5]}
52... h5 {[%clk 0:00:03.4]} 53. Rxa6 {[%clk 0:00:09.9]} 53... Rxh2 {[%clk
0:00:03.4]} 54. Bf6 {[%clk 0:00:08.3]} 54... Bg4 {[%clk 0:00:03.6]} 55. Bh4
{[%clk 0:00:08]} 55... Re2+ {[%clk 0:00:03.6]} 56. Kf1 {[%clk 0:00:08.5]} 56...
Ra2 {[%clk 0:00:04.5]} 57. Ra5 {[%clk 0:00:08.1]} 57... Kf7 {[%clk 0:00:04.2]}
58. Ke1 {[%clk 0:00:07.6]} 58... Re2+ {[%clk 0:00:03.9]} 59. Kf1 {[%clk
0:00:08.1]} 59... Ra2 {[%clk 0:00:04.8]} 60. Ke1 {[%clk 0:00:08.5]} 60... Re2+
{[%clk 0:00:04.7]} 61. Kf1 {[%clk 0:00:08.6]} 61... Re5 {[%clk 0:00:04.2]} 62.
Kf2 {[%clk 0:00:08.2]} 62... Ke6 {[%clk 0:00:04.1]} 63. Ra6+ {[%clk 0:00:08.2]}
63... Kd5 {[%clk 0:00:04.7]} 64. a4 {[%clk 0:00:05.6]} 64... Re2+ {[%clk
0:00:04.5]} 65. Kf1 {[%clk 0:00:04.4]} 65... Rb2 {[%clk 0:00:03.9]} 66. axb5
{[%clk 0:00:04.6]} 66... Rxb4 {[%clk 0:00:04.2]} 67. Ra5 {[%clk 0:00:04.6]}
67... Rb2 {[%clk 0:00:03.8]} 68. Ke1 {[%clk 0:00:04.4]} 68... Kc4 {[%clk
0:00:03.8]} 69. b6 {[%clk 0:00:04.7]} 69... Kd3 {[%clk 0:00:04]} 70. Ra3+ {[%clk
0:00:04.3]} 70... Ke4 {[%clk 0:00:04.4]} 71. Ra6 {[%clk 0:00:04.1]} 71... Ke3
{[%clk 0:00:04.2]} 72. Ra3+ {[%clk 0:00:03.9]} 72... Ke4 {[%clk 0:00:04.8]} 73.
Ra6 {[%clk 0:00:04]} 73... Re2+ {[%clk 0:00:05.5]} 74. Kf1 {[%clk 0:00:04.1]}
74... Rc2 {[%clk 0:00:04.5]} 75. Ra4+ {[%clk 0:00:04.6]} 75... Kf3 {[%clk
0:00:04.5]} 76. Ra3+ {[%clk 0:00:05]} 76... Ke4 {[%clk 0:00:05.1]} 77. Rb3
{[%clk 0:00:05.3]} 77... Bh3+ {[%clk 0:00:04.7]} 78. Ke1 {[%clk 0:00:05.4]}
78... Rc1+ {[%clk 0:00:04.4]} 79. Kd2 {[%clk 0:00:05.5]} 79... Rc8 {[%clk
0:00:05.3]} 80. b7 {[%clk 0:00:06.1]} 80... Rb8 {[%clk 0:00:06]} 81. Be7 {[%clk
0:00:06.2]} 81... Kd5 {[%clk 0:00:06]} 82. Bg5 {[%clk 0:00:05.3]} 82... Kc6
{[%clk 0:00:06.1]} 83. Bf4 {[%clk 0:00:05.5]} 83... Rxb7 {[%clk 0:00:06.7]} 84.
Rxb7 {[%clk 0:00:05.9]} 84... Kxb7 {[%clk 0:00:07.6]} 85. Bg5 {[%clk 0:00:06.5]}
85... Bg4 {[%clk 0:00:08.3]} 86. Bh4 {[%clk 0:00:07.4]} 86... Kc6 {[%clk
0:00:09.2]} 87. Ke3 {[%clk 0:00:08.3]} 87... Kd5 {[%clk 0:00:10.1]} 88. Kf4
{[%clk 0:00:09]} 88... Kc4 {[%clk 0:00:11]} 89. Kg5 {[%clk 0:00:09.8]} 89... Kd3
{[%clk 0:00:11.9]} 90. Kf4 {[%clk 0:00:10.7]} 90... Ke2 {[%clk 0:00:12.8]} 91.
Kg5 {[%clk 0:00:11.6]} 91... Kf1 {[%clk 0:00:13.7]} 92. Kf4 {[%clk 0:00:12.5]}
92... Kg1 {[%clk 0:00:14.6]} 93. Kg5 {[%clk 0:00:13.4]} 93... Kh2 {[%clk
0:00:15.5]} 94. Kf4 {[%clk 0:00:14.3]} 94... Kh3 {[%clk 0:00:16.4]} 95. Kg5
{[%clk 0:00:15.2]} 95... Kg2 {[%clk 0:00:17.3]} 96. Kf4 {[%clk 0:00:16.1]} 96...
Kh2 {[%clk 0:00:18.2]} 97. Kg5 {[%clk 0:00:17]} 97... Kh3 {[%clk 0:00:19.1]} 98.
Kf4 {[%clk 0:00:17.9]} 98... Kg2 {[%clk 0:00:20]} 99. Kg5 {[%clk 0:00:18.8]}
99... Kh2 {[%clk 0:00:20.9]} 100. Kf4 {[%clk 0:00:19.7]} 100... Kh3 {[%clk
0:00:21.8]} 101. Kg5 {[%clk 0:00:20.6]} 101... Kg2 {[%clk 0:00:22.7]} 102. Kf4
{[%clk 0:00:21.4]} 102... Kh2 {[%clk 0:00:23.6]} 103. Kg5 {[%clk 0:00:22.3]}
103... Kh3 {[%clk 0:00:24.5]} 104. Kf4 {[%clk 0:00:23.2]} 104... Kg2 {[%clk
0:00:25.4]} 105. Kg5 {[%clk 0:00:24.1]} 105... Kh2 {[%clk 0:00:26.3]} 1/2-1/2

[Event "*** SCC Grand Prix: Titled Tuesday Blitz"]
[Site "Chess.com"]
[Date "2020.09.29"]
[Round "3"]
[White "kobemagic"]
[Black "hungrycaterpillar4"]
[Result "1-0"]
[WhiteElo "2420"]
[BlackElo "2620"]
[TimeControl "180+1"]
[EndTime "10:30:20 PDT"]
[Termination "kobemagic won by resignation"]

1. c4 {[%clk 0:03:00.9]} 1... c6 {[%clk 0:02:59.5]} 2. g3 {[%clk 0:02:58.6]}
2... d5 {[%clk 0:02:59.5]} 3. Bg2 {[%clk 0:02:58.7]} 3... Nf6 {[%clk 0:02:59.9]}
4. Nf3 {[%clk 0:02:59]} 4... dxc4 {[%clk 0:02:58.8]} 5. Qc2 {[%clk 0:02:57.7]}
5... b6 {[%clk 0:02:56]} 6. Qxc4 {[%clk 0:02:56.8]} 6... Bb7 {[%clk 0:02:55.7]}
7. O-O {[%clk 0:02:54.8]} 7... Nbd7 {[%clk 0:02:55.9]} 8. d4 {[%clk 0:02:51.9]}
8... Rc8 {[%clk 0:02:55.9]} 9. Nc3 {[%clk 0:02:49.3]} 9... b5 {[%clk 0:02:54.4]}
10. Qb3 {[%clk 0:02:46.7]} 10... a6 {[%clk 0:02:54.2]} 11. Bf4 {[%clk
0:02:42.3]} 11... e6 {[%clk 0:02:53.5]} 12. Rac1 {[%clk 0:02:39.7]} 12... Be7
{[%clk 0:02:53.2]} 13. Ne5 {[%clk 0:02:30.7]} 13... O-O {[%clk 0:02:47]} 14.
Nxd7 {[%clk 0:02:23]} 14... Qxd7 {[%clk 0:02:46.5]} 15. Rfd1 {[%clk 0:02:23.5]}
15... Bd6 {[%clk 0:02:45.1]} 16. Bxd6 {[%clk 0:02:20.1]} 16... Qxd6 {[%clk
0:02:46]} 17. Ne4 {[%clk 0:02:20.2]} 17... Nxe4 {[%clk 0:02:45.6]} 18. Bxe4
{[%clk 0:02:21.1]} 18... e5 {[%clk 0:02:34.1]} 19. e3 {[%clk 0:02:02.7]} 19...
g6 {[%clk 0:02:21.4]} 20. Qc3 {[%clk 0:01:57]} 20... exd4 {[%clk 0:02:11.8]} 21.
Rxd4 {[%clk 0:01:54.1]} 21... Qe6 {[%clk 0:02:12.3]} 22. a3 {[%clk 0:01:13.4]}
22... Ba8 {[%clk 0:02:00.5]} 23. Qc5 {[%clk 0:01:00.9]} 23... Rfe8 {[%clk
0:01:27.6]} 24. Bf3 {[%clk 0:00:55.5]} 24... Qe7 {[%clk 0:01:11.5]} 25. b4
{[%clk 0:00:47.7]} 25... Qxc5 {[%clk 0:01:06.2]} 26. Rxc5 {[%clk 0:00:48.6]}
26... Re7 {[%clk 0:01:06]} 27. Rd6 {[%clk 0:00:47]} 27... Rec7 {[%clk
0:01:06.1]} 28. h4 {[%clk 0:00:46.2]} 28... Kf8 {[%clk 0:01:02.3]} 29. h5 {[%clk
0:00:45.8]} 29... Ke7 {[%clk 0:01:02.6]} 30. Rd4 {[%clk 0:00:43.2]} 30... Rd7
{[%clk 0:00:59]} 31. Re5+ {[%clk 0:00:39.2]} 31... Kd8 {[%clk 0:00:58.9]} 32.
Rxd7+ {[%clk 0:00:35.4]} 32... Kxd7 {[%clk 0:00:59.8]} 33. hxg6 {[%clk
0:00:33.7]} 33... hxg6 {[%clk 0:01:00.7]} 34. Rc5 {[%clk 0:00:21]} 34... Kd6
{[%clk 0:00:58]} 35. e4 {[%clk 0:00:20.8]} 35... f6 {[%clk 0:00:57.2]} 36. Bg4
{[%clk 0:00:17.9]} 36... Re8 {[%clk 0:00:54.4]} 37. f3 {[%clk 0:00:18.1]} 37...
a5 {[%clk 0:00:47.5]} 38. Kf2 {[%clk 0:00:18.2]} 38... Rh8 {[%clk 0:00:44.1]}
39. f4 {[%clk 0:00:18]} 39... a4 {[%clk 0:00:38.7]} 40. e5+ {[%clk 0:00:17.7]}
40... Ke7 {[%clk 0:00:38.5]} 41. exf6+ {[%clk 0:00:17.1]} 41... Kxf6 {[%clk
0:00:39.4]} 42. Bf3 {[%clk 0:00:17.5]} 42... Rh2+ {[%clk 0:00:17.7]} 43. Bg2
{[%clk 0:00:17.3]} 43... Bb7 {[%clk 0:00:09.2]} 44. Kg1 {[%clk 0:00:17.7]} 44...
Rh7 {[%clk 0:00:05.3]} 45. Bxc6 {[%clk 0:00:18.1]} 45... Bxc6 {[%clk 0:00:05.7]}
46. Rxc6+ {[%clk 0:00:18.3]} 46... Kf5 {[%clk 0:00:06.6]} 47. Kg2 {[%clk
0:00:18]} 47... Rd7 {[%clk 0:00:05]} 48. Rc3 {[%clk 0:00:17.4]} 48... Rd2+
{[%clk 0:00:04.5]} 49. Kf3 {[%clk 0:00:17.5]} 49... Ra2 {[%clk 0:00:03.9]} 50.
Rc5+ {[%clk 0:00:17.4]} 50... Kf6 {[%clk 0:00:03.4]} 51. Rxb5 {[%clk 0:00:18]}
51... Rxa3+ {[%clk 0:00:03.2]} 52. Kg4 {[%clk 0:00:18.5]} 52... Rb3 {[%clk
0:00:03.2]} 53. Rb6+ {[%clk 0:00:18.7]} 53... Kf7 {[%clk 0:00:02.9]} 54. b5
{[%clk 0:00:19]} 54... a3 {[%clk 0:00:03.5]} 55. Ra6 {[%clk 0:00:19]} 55... Rxb5
{[%clk 0:00:03.6]} 56. Rxa3 {[%clk 0:00:19.1]} 56... Kg7 {[%clk 0:00:04.3]} 57.
Ra6 {[%clk 0:00:18.6]} 57... Kh6 {[%clk 0:00:04.4]} 58. Ra8 {[%clk 0:00:17.8]}
58... Kg7 {[%clk 0:00:04.2]} 59. Kh4 {[%clk 0:00:15.7]} 59... Rh5+ {[%clk
0:00:03.7]} 60. Kg4 {[%clk 0:00:14.5]} 60... Rb5 {[%clk 0:00:04.6]} 61. Re8
{[%clk 0:00:14.6]} 61... Kf7 {[%clk 0:00:04.8]} 62. Re5 {[%clk 0:00:14.9]} 62...
Rb3 {[%clk 0:00:04.8]} 63. Rd5 {[%clk 0:00:13.8]} 63... Kf6 {[%clk 0:00:05]} 64.
Rd6+ {[%clk 0:00:13.5]} 64... Kf7 {[%clk 0:00:04.9]} 65. Rc6 {[%clk 0:00:14]}
65... Kg7 {[%clk 0:00:05]} 66. Kh4 {[%clk 0:00:13.3]} 66... Kh7 {[%clk 0:00:05]}
67. g4 {[%clk 0:00:13.5]} 67... Rb5 {[%clk 0:00:04.6]} 68. Rc7+ {[%clk
0:00:12.9]} 68... Kg8 {[%clk 0:00:04.4]} 69. Rd7 {[%clk 0:00:11.8]} 69... Kf8
{[%clk 0:00:04.5]} 70. Rd6 {[%clk 0:00:10.8]} 70... Kf7 {[%clk 0:00:04.7]} 71.
Rc6 {[%clk 0:00:10.4]} 71... Kg7 {[%clk 0:00:04.6]} 72. Rc7+ {[%clk 0:00:09.6]}
72... Kf6 {[%clk 0:00:04.8]} 73. g5+ {[%clk 0:00:08.7]} 73... Ke6 {[%clk
0:00:04.3]} 74. Rg7 {[%clk 0:00:08.9]} 74... Kf5 {[%clk 0:00:03.4]} 75. Rf7+
{[%clk 0:00:09.2]} 75... Ke4 {[%clk 0:00:04]} 76. Kg4 {[%clk 0:00:09.7]} 76...
Rb1 {[%clk 0:00:03.8]} 77. Re7+ {[%clk 0:00:10]} 77... Kd5 {[%clk 0:00:03]} 78.
Re3 {[%clk 0:00:09.9]} 78... Rb6 {[%clk 0:00:02]} 79. Rf3 {[%clk 0:00:09.6]}
79... Ke4 {[%clk 0:00:02]} 80. Rf1 {[%clk 0:00:09.4]} 80... Kd5 {[%clk 0:00:02]}
81. Re1 {[%clk 0:00:09.7]} 81... Re6 {[%clk 0:00:01.6]} 82. Rd1+ {[%clk
0:00:08.8]} 82... Kc6 {[%clk 0:00:01.8]} 83. f5 {[%clk 0:00:08.6]} 83... gxf5+
{[%clk 0:00:02.7]} 84. Kxf5 {[%clk 0:00:08.8]} 84... Re2 {[%clk 0:00:02.7]} 85.
Kg6 {[%clk 0:00:08.6]} 85... Rf2 {[%clk 0:00:02.8]} 86. Kh6 {[%clk 0:00:08.6]}
86... Rh2+ {[%clk 0:00:03.2]} 87. Kg7 {[%clk 0:00:08.3]} 87... Rg2 {[%clk
0:00:03.8]} 88. g6 {[%clk 0:00:08.8]} 88... Rg3 {[%clk 0:00:04.2]} 89. Kh7
{[%clk 0:00:08.9]} 89... Rh3+ {[%clk 0:00:04.4]} 90. Kg8 {[%clk 0:00:08.5]}
90... Rg3 {[%clk 0:00:02.4]} 91. g7 {[%clk 0:00:08.9]} 91... Kc7 {[%clk
0:00:02.4]} 92. Rf1 {[%clk 0:00:08.8]} 92... Kd7 {[%clk 0:00:02]} 93. Kf7 {[%clk
0:00:09.3]} 93... Rg1 {[%clk 0:00:01.2]} 94. Rxg1 {[%clk 0:00:08.4]} 94... Kd6
{[%clk 0:00:01.6]} 1-0

[Event "*** SCC Grand Prix: Titled Tuesday Blitz"]
[Site "Chess.com"]
[Date "2020.09.29"]
[Round "3"]
[White "Evandro_Barbosa"]
[Black "KyrgyzFighter"]
[Result "1-0"]
[WhiteElo "2738"]
[BlackElo "2378"]
[TimeControl "180+1"]
[EndTime "10:30:29 PDT"]
[Termination "Evandro_Barbosa won by checkmate"]

1. e4 {[%clk 0:02:59.2]} 1... e6 {[%clk 0:02:59.9]} 2. d3 {[%clk 0:02:59]} 2...
d5 {[%clk 0:03:00.3]} 3. Qe2 {[%clk 0:02:59.4]} 3... Be7 {[%clk 0:02:48.5]} 4.
Nf3 {[%clk 0:02:59.2]} 4... Nf6 {[%clk 0:02:48.2]} 5. g3 {[%clk 0:02:59.5]} 5...
O-O {[%clk 0:02:48.3]} 6. Bg2 {[%clk 0:02:59]} 6... c5 {[%clk 0:02:48.8]} 7. O-O
{[%clk 0:02:58.9]} 7... Nc6 {[%clk 0:02:49.3]} 8. e5 {[%clk 0:02:57.4]} 8... Nd7
{[%clk 0:02:46.9]} 9. c4 {[%clk 0:02:57.9]} 9... d4 {[%clk 0:02:39.9]} 10. h4
{[%clk 0:02:57.3]} 10... Rb8 {[%clk 0:02:32.6]} 11. h5 {[%clk 0:02:56.1]} 11...
b6 {[%clk 0:02:31]} 12. Bf4 {[%clk 0:02:55.7]} 12... Bb7 {[%clk 0:02:30.5]} 13.
h6 {[%clk 0:02:53.8]} 13... g6 {[%clk 0:02:30.7]} 14. Re1 {[%clk 0:02:44.9]}
14... a6 {[%clk 0:02:19.8]} 15. g4 {[%clk 0:02:37]} 15... b5 {[%clk 0:02:18.8]}
16. Nbd2 {[%clk 0:02:36.8]} 16... Nb6 {[%clk 0:02:12.4]} 17. b3 {[%clk
0:02:36.9]} 17... Nb4 {[%clk 0:02:06.3]} 18. Rec1 {[%clk 0:02:28.4]} 18... bxc4
{[%clk 0:02:06.6]} 19. dxc4 {[%clk 0:02:19.8]} 19... d3 {[%clk 0:01:53.4]} 20.
Qd1 {[%clk 0:02:13.1]} 20... Nc2 {[%clk 0:01:47.4]} 21. Rab1 {[%clk 0:02:09.7]}
21... Nd4 {[%clk 0:01:42.4]} 22. Bf1 {[%clk 0:01:53.2]} 22... Qd7 {[%clk
0:01:06.4]} 23. Bxd3 {[%clk 0:01:16.9]} 23... Rfd8 {[%clk 0:01:06.4]} 24. Be4
{[%clk 0:01:07.4]} 24... Bxe4 {[%clk 0:00:47.3]} 25. Nxe4 {[%clk 0:01:07.3]}
25... Qc6 {[%clk 0:00:47.8]} 26. Nfd2 {[%clk 0:00:57.1]} 26... Rd7 {[%clk
0:00:34.9]} 27. Be3 {[%clk 0:00:49.7]} 27... Rbd8 {[%clk 0:00:33.5]} 28. Bxd4
{[%clk 0:00:49.1]} 28... Rxd4 {[%clk 0:00:34.4]} 29. Qe2 {[%clk 0:00:48.3]}
29... Qc7 {[%clk 0:00:33.7]} 30. Nf3 {[%clk 0:00:45.7]} 30... R4d7 {[%clk
0:00:31.7]} 31. Rd1 {[%clk 0:00:44.1]} 31... a5 {[%clk 0:00:24.5]} 32. a4 {[%clk
0:00:41.4]} 32... Qc6 {[%clk 0:00:21.5]} 33. Rxd7 {[%clk 0:00:34.5]} 33... Rxd7
{[%clk 0:00:22.4]} 34. g5 {[%clk 0:00:34.9]} 34... Na8 {[%clk 0:00:16.1]} 35.
Qe3 {[%clk 0:00:34.9]} 35... Nc7 {[%clk 0:00:15.7]} 36. Qf4 {[%clk 0:00:34.3]}
36... Rd3 {[%clk 0:00:13.8]} 37. Rb2 {[%clk 0:00:19.9]} 37... Na6 {[%clk
0:00:12.1]} 38. Rd2 {[%clk 0:00:19.8]} 38... Nb4 {[%clk 0:00:09.9]} 39. Nf6+
{[%clk 0:00:18.6]} 39... Kh8 {[%clk 0:00:09]} 40. Ne4 {[%clk 0:00:15.2]} 40...
Kg8 {[%clk 0:00:08.7]} 41. Kf1 {[%clk 0:00:15]} 41... Rxb3 {[%clk 0:00:07.4]}
42. Nf6+ {[%clk 0:00:14.1]} 42... Kh8 {[%clk 0:00:07.6]} 43. Ne4 {[%clk
0:00:14.1]} 43... Kg8 {[%clk 0:00:07.6]} 44. Rd1 {[%clk 0:00:06.1]} 44... Nd3
{[%clk 0:00:07.2]} 45. Nf6+ {[%clk 0:00:04.4]} 45... Kh8 {[%clk 0:00:07]} 46.
Qe4 {[%clk 0:00:03.9]} 46... Qxe4 {[%clk 0:00:06.6]} 47. Nxe4 {[%clk 0:00:04.1]}
47... Kg8 {[%clk 0:00:06.7]} 48. Ne1 {[%clk 0:00:04]} 48... Nxe1 {[%clk
0:00:06.4]} 49. Kxe1 {[%clk 0:00:04.9]} 49... Kf8 {[%clk 0:00:06.9]} 50. Rd7
{[%clk 0:00:05.2]} 50... Ke8 {[%clk 0:00:07.3]} 51. Rc7 {[%clk 0:00:05.3]} 51...
Rb4 {[%clk 0:00:07.8]} 52. Nf6+ {[%clk 0:00:05.6]} 52... Bxf6 {[%clk 0:00:08.3]}
53. exf6 {[%clk 0:00:05.9]} 53... Rxc4 {[%clk 0:00:09.2]} 54. Re7+ {[%clk
0:00:05.4]} 54... Kf8 {[%clk 0:00:09.3]} 55. Ra7 {[%clk 0:00:05.8]} 55... Ke8
{[%clk 0:00:10.2]} 56. Re7+ {[%clk 0:00:05.8]} 56... Kf8 {[%clk 0:00:10.1]} 57.
Ra7 {[%clk 0:00:06.5]} 57... Ke8 {[%clk 0:00:10.5]} 58. Rxa5 {[%clk 0:00:06.2]}
58... Rc2 {[%clk 0:00:10.4]} 59. Ra8+ {[%clk 0:00:06.8]} 59... Kd7 {[%clk
0:00:10.8]} 60. Ra7+ {[%clk 0:00:06.8]} 60... Ke8 {[%clk 0:00:11.4]} 61. Re7+
{[%clk 0:00:07.3]} 61... Kf8 {[%clk 0:00:11.8]} 62. Rc7 {[%clk 0:00:07.7]} 62...
Ke8 {[%clk 0:00:12.3]} 63. a5 {[%clk 0:00:08]} 63... Ra2 {[%clk 0:00:12.3]} 64.
Re7+ {[%clk 0:00:08.4]} 64... Kf8 {[%clk 0:00:12.4]} 65. Rc7 {[%clk 0:00:08.9]}
65... Ke8 {[%clk 0:00:11.5]} 66. Rxc5 {[%clk 0:00:09.6]} 66... Kd7 {[%clk
0:00:12]} 67. Rb5 {[%clk 0:00:09.7]} 67... Kc6 {[%clk 0:00:12.4]} 68. Rb6+
{[%clk 0:00:09.8]} 68... Kc7 {[%clk 0:00:13]} 69. Rb5 {[%clk 0:00:10.2]} 69...
Kc6 {[%clk 0:00:13.5]} 70. Re5 {[%clk 0:00:10.6]} 70... Kd6 {[%clk 0:00:13.7]}
71. f4 {[%clk 0:00:10.5]} 71... Ra4 {[%clk 0:00:14.1]} 72. Rb5 {[%clk
0:00:10.7]} 72... Kc6 {[%clk 0:00:14.3]} 73. Rb6+ {[%clk 0:00:10.7]} 73... Kc7
{[%clk 0:00:14.8]} 74. Rb5 {[%clk 0:00:10.1]} 74... Kc6 {[%clk 0:00:15.1]} 75.
Rb8 {[%clk 0:00:10.1]} 75... Rxa5 {[%clk 0:00:14.2]} 76. Rf8 {[%clk 0:00:10.7]}
76... Ra7 {[%clk 0:00:14]} 77. Rh8 {[%clk 0:00:10.8]} 77... Kd5 {[%clk
0:00:14.4]} 78. Rxh7 {[%clk 0:00:11.1]} 78... Ke4 {[%clk 0:00:15]} 79. Rg7
{[%clk 0:00:10.6]} 79... Kxf4 {[%clk 0:00:13.5]} 80. h7 {[%clk 0:00:09.5]} 80...
Ke3 {[%clk 0:00:13.7]} 81. Kd1 {[%clk 0:00:09.3]} 81... Ra1+ {[%clk 0:00:13.1]}
82. Kc2 {[%clk 0:00:08.9]} 82... Rh1 {[%clk 0:00:13.7]} 83. Rxf7 {[%clk
0:00:07.6]} 83... Kf4 {[%clk 0:00:13.6]} 84. Rg7 {[%clk 0:00:08.1]} 84... e5
{[%clk 0:00:11]} 85. f7 {[%clk 0:00:08.4]} 85... Kxg5 {[%clk 0:00:11.4]} 86.
f8=Q {[%clk 0:00:08.5]} 86... e4 {[%clk 0:00:11.9]} 87. h8=Q {[%clk 0:00:08.6]}
87... Rxh8 {[%clk 0:00:11.2]} 88. Qxh8 {[%clk 0:00:09.5]} 88... e3 {[%clk
0:00:12.1]} 89. Qh7 {[%clk 0:00:04.8]} 89... Kf4 {[%clk 0:00:12.5]} 90. Rf7+
{[%clk 0:00:04.4]} 90... Ke5 {[%clk 0:00:11.5]} 91. Qxg6 {[%clk 0:00:03.7]}
91... e2 {[%clk 0:00:12.4]} 92. Rf5+ {[%clk 0:00:02.5]} 92... Ke4 {[%clk
0:00:12.8]} 93. Qg4+ {[%clk 0:00:03]} 93... Ke3 {[%clk 0:00:13.3]} 94. Rf3#
{[%clk 0:00:03.3]} 1-0

[Event "*** SCC Grand Prix: Titled Tuesday Blitz"]
[Site "Chess.com"]
[Date "2020.09.29"]
[Round "4"]
[White "Colombiano07"]
[Black "Nikolaj_6"]
[Result "0-1"]
[WhiteElo "2345"]
[BlackElo "2574"]
[TimeControl "180+1"]
[EndTime "10:32:28 PDT"]
[Termination "Nikolaj_6 won by resignation"]

1. c4 {[%clk 0:02:51.2]} 1... Nf6 {[%clk 0:02:58.7]} 2. g3 {[%clk 0:02:51.1]}
2... e5 {[%clk 0:02:58.2]} 3. Bg2 {[%clk 0:02:51]} 3... d5 {[%clk 0:02:58.4]} 4.
cxd5 {[%clk 0:02:51]} 4... Nxd5 {[%clk 0:02:58.9]} 5. Nc3 {[%clk 0:02:49.8]}
5... Nb6 {[%clk 0:02:58.1]} 6. Nf3 {[%clk 0:02:50.1]} 6... Nc6 {[%clk
0:02:58.1]} 7. O-O {[%clk 0:02:50.7]} 7... Be7 {[%clk 0:02:58.3]} 8. d3 {[%clk
0:02:50.7]} 8... O-O {[%clk 0:02:58.4]} 9. Be3 {[%clk 0:02:50.6]} 9... Re8
{[%clk 0:02:58.1]} 10. Rc1 {[%clk 0:02:50]} 10... Bf8 {[%clk 0:02:58.2]} 11. Na4
{[%clk 0:02:50]} 11... e4 {[%clk 0:02:55.6]} 12. dxe4 {[%clk 0:02:49.1]} 12...
Qxd1 {[%clk 0:02:55.1]} 13. Rfxd1 {[%clk 0:02:48.9]} 13... Nxa4 {[%clk
0:02:55.3]} 0-1

[Event "*** SCC Grand Prix: Titled Tuesday Blitz"]
[Site "Chess.com"]
[Date "2020.09.29"]
[Round "4"]
[White "chessdjw"]
[Black "vladislavkovalev"]
[Result "1/2-1/2"]
[WhiteElo "2642"]
[BlackElo "2827"]
[TimeControl "180+1"]
[EndTime "10:33:54 PDT"]
[Termination "Game drawn by repetition"]

1. c4 {[%clk 0:03:00.9]} 1... g6 {[%clk 0:03:00.1]} 2. Nc3 {[%clk 0:03:00.4]}
2... Bg7 {[%clk 0:03:00.8]} 3. d4 {[%clk 0:03:00.3]} 3... d6 {[%clk 0:03:01.5]}
4. e4 {[%clk 0:03:00.7]} 4... e5 {[%clk 0:03:00.6]} 5. Nge2 {[%clk 0:02:58.1]}
5... Nc6 {[%clk 0:02:55.4]} 6. Be3 {[%clk 0:02:54.4]} 6... exd4 {[%clk
0:02:52.7]} 7. Nxd4 {[%clk 0:02:54.6]} 7... Nge7 {[%clk 0:02:53.4]} 8. h4 {[%clk
0:02:54.2]} 8... O-O {[%clk 0:02:43.1]} 9. h5 {[%clk 0:02:54.5]} 9... f5 {[%clk
0:02:43]} 10. hxg6 {[%clk 0:02:42.2]} 10... hxg6 {[%clk 0:02:43.9]} 11. exf5
{[%clk 0:02:42.4]} 11... Bxd4 {[%clk 0:02:44.1]} 12. Bxd4 {[%clk 0:02:40.5]}
12... Nxf5 {[%clk 0:02:44.8]} 13. Rh8+ {[%clk 0:02:16.6]} 13... Kf7 {[%clk
0:02:44.8]} 14. Rh7+ {[%clk 0:02:15.2]} 14... Kg8 {[%clk 0:02:45]} 15. Rh8+
{[%clk 0:01:40.7]} 15... Kf7 {[%clk 0:02:45.6]} 16. Rh7+ {[%clk 0:01:41.3]}
16... Kg8 {[%clk 0:02:45.9]} 17. Rh8+ {[%clk 0:01:41]} 1/2-1/2